[Event "Live Chess"]
[Site "Chess.com"]
[Date "2024.06.02"]
[Round "-"]
[White "Tatarinov_Maxim"]
[Black "AlanBstard10"]
[Result "1-0"]
[WhiteElo "2275"]
[BlackElo "1229"]
[TimeControl "300"]
[EndTime "2:16:48 PDT"]
[Termination "Tatarinov_Maxim won by resignation"]

1. d4 {[%clk 0:04:57.1]} 1... Nf6 {[%clk 0:04:55.7]} 2. c4 {[%clk 0:04:56.1]}
2... c5 {[%clk 0:04:53.9]} 3. d5 {[%clk 0:04:53.5]} 3... b5 {[%clk 0:04:51.9]}
4. cxb5 {[%clk 0:04:52.9]} 4... a6 {[%clk 0:04:50.3]} 5. e3 {[%clk 0:04:52.4]}
5... g6 {[%clk 0:04:47.8]} 6. Nc3 {[%clk 0:04:48.2]} 6... Bg7 {[%clk 0:04:46.9]}
7. Nf3 {[%clk 0:04:47.4]} 7... O-O {[%clk 0:04:45.5]} 8. bxa6 {[%clk 0:04:43.2]}
8... Bxa6 {[%clk 0:04:44.1]} 9. Bxa6 {[%clk 0:04:42.1]} 9... Nxa6 {[%clk
0:04:41.9]} 10. O-O {[%clk 0:04:42]} 10... d6 {[%clk 0:04:40.2]} 11. e4 {[%clk
0:04:38.1]} 11... Qa5 {[%clk 0:04:31.4]} 12. Nd2 {[%clk 0:04:33.4]} 12... Rfb8
{[%clk 0:04:29.2]} 13. Re1 {[%clk 0:04:24.7]} 13... Ne8 {[%clk 0:04:21.7]} 14.
Nc4 {[%clk 0:04:16.8]} 14... Qc7 {[%clk 0:04:17.3]} 15. Bd2 {[%clk 0:03:56.3]}
15... Nb4 {[%clk 0:04:03.9]} 16. Qb1 {[%clk 0:02:56.9]} 16... Nf6 {[%clk
0:03:52.1]} 17. a4 {[%clk 0:02:54.8]} 17... Ng4 {[%clk 0:03:38.1]} 18. Nb5
{[%clk 0:02:51.1]} 18... Rxb5 {[%clk 0:03:20.3]} 19. axb5 {[%clk 0:02:49.5]}
19... Rxa1 {[%clk 0:03:19.9]} 20. Qxa1 {[%clk 0:02:48.8]} 20... Nd3 {[%clk
0:03:14]} 21. Qa8+ {[%clk 0:02:46.2]} 21... Bf8 {[%clk 0:03:12]} 22. Ra1 {[%clk
0:02:36.5]} 22... Ndxf2 {[%clk 0:03:09.1]} 23. Ra7 {[%clk 0:02:35.2]} 23... Qxa7
{[%clk 0:02:43]} 24. Qxa7 {[%clk 0:02:32.4]} 24... Kg7 {[%clk 0:02:40.9]} 25.
Bc3+ {[%clk 0:02:25.9]} 25... f6 {[%clk 0:02:39]} 26. h3 {[%clk 0:02:25.2]}
26... Nxe4 {[%clk 0:02:34.8]} 27. hxg4 {[%clk 0:02:23.5]} 27... Nxc3 {[%clk
0:02:34]} 28. bxc3 {[%clk 0:02:23]} 28... Kf7 {[%clk 0:02:32.6]} 29. Nxd6+
{[%clk 0:02:21.9]} 1-0

[Event "Live Chess"]
[Site "Chess.com"]
[Date "2024.06.02"]
[Round "-"]
[White "ggosyaa"]
[Black "Tushinskiy"]
[Result "0-1"]
[WhiteElo "575"]
[BlackElo "2281"]
[TimeControl "300"]
[EndTime "2:17:08 PDT"]
[Termination "Tushinskiy won by resignation"]

1. d4 {[%clk 0:04:56.5]} 1... d5 {[%clk 0:04:58.7]} 2. Bf4 {[%clk 0:04:49.9]}
2... c6 {[%clk 0:04:58.6]} 3. e3 {[%clk 0:04:47.6]} 3... Nf6 {[%clk 0:04:58.5]}
4. Bd3 {[%clk 0:04:46.5]} 4... e6 {[%clk 0:04:57.6]} 5. Nf3 {[%clk 0:04:45.1]}
5... Bd6 {[%clk 0:04:56.1]} 6. Bg3 {[%clk 0:04:43.5]} 6... Qe7 {[%clk
0:04:53.9]} 7. c3 {[%clk 0:04:38.2]} 7... Nbd7 {[%clk 0:04:51.8]} 8. Nbd2 {[%clk
0:04:36.8]} 8... e5 {[%clk 0:04:45.6]} 9. O-O {[%clk 0:04:22.4]} 9... e4 {[%clk
0:04:30.2]} 10. Nxe4 {[%clk 0:04:11.9]} 10... dxe4 {[%clk 0:04:28.9]} 11. Bc4
{[%clk 0:04:07.2]} 11... exf3 {[%clk 0:04:21.7]} 12. Qxf3 {[%clk 0:04:06.3]}
12... O-O {[%clk 0:04:19.6]} 13. Rad1 {[%clk 0:03:59.7]} 13... Nb6 {[%clk
0:04:16.4]} 14. Bd3 {[%clk 0:03:56.3]} 14... Bg4 {[%clk 0:04:12]} 15. Qf4 {[%clk
0:03:49.5]} 15... Bxf4 {[%clk 0:04:07]} 16. Bxf4 {[%clk 0:03:48.2]} 16... Bxd1
{[%clk 0:04:05.6]} 17. Rxd1 {[%clk 0:03:47.2]} 17... Rad8 {[%clk 0:04:03.5]} 18.
b4 {[%clk 0:03:34.8]} 18... Nbd5 {[%clk 0:04:01.6]} 19. Bg3 {[%clk 0:03:30.9]}
19... Nxc3 {[%clk 0:03:59.4]} 20. Rc1 {[%clk 0:03:26.5]} 20... Qxb4 {[%clk
0:03:57.1]} 21. Bh4 {[%clk 0:03:16.2]} 21... c5 {[%clk 0:03:55]} 22. dxc5 {[%clk
0:03:13.2]} 0-1

[Event "Live Chess"]
[Site "Chess.com"]
[Date "2024.06.02"]
[Round "-"]
[White "missedJariChance"]
[Black "raimundklein"]
[Result "0-1"]
[WhiteElo "1352"]
[BlackElo "1566"]
[TimeControl "300"]
[EndTime "2:17:17 PDT"]
[Termination "raimundklein won on time"]

1. b3 {[%clk 0:04:56.7]} 1... e5 {[%clk 0:04:57.3]} 2. Bb2 {[%clk 0:04:54.4]}
2... Nc6 {[%clk 0:04:54.9]} 3. Nf3 {[%clk 0:04:53]} 3... d6 {[%clk 0:04:53.3]}
4. d4 {[%clk 0:04:44.5]} 4... exd4 {[%clk 0:04:47.1]} 5. Nxd4 {[%clk 0:04:42.7]}
5... Nf6 {[%clk 0:04:43.7]} 6. e3 {[%clk 0:04:41]} 6... Nxd4 {[%clk 0:04:33.2]}
7. Bxd4 {[%clk 0:04:38.5]} 7... Be7 {[%clk 0:04:30.9]} 8. Bd3 {[%clk 0:04:35.1]}
8... O-O {[%clk 0:04:28.9]} 9. O-O {[%clk 0:04:33]} 9... Bg4 {[%clk 0:04:24.1]}
10. Be2 {[%clk 0:04:30.5]} 10... Bxe2 {[%clk 0:04:21.9]} 11. Qxe2 {[%clk
0:04:29.1]} 11... c5 {[%clk 0:04:19]} 12. Bb2 {[%clk 0:04:27.3]} 12... d5 {[%clk
0:04:15.8]} 13. Rd1 {[%clk 0:04:19.4]} 13... Qc7 {[%clk 0:04:13.8]} 14. Nd2
{[%clk 0:04:15.4]} 14... Rfd8 {[%clk 0:04:08.9]} 15. Nf3 {[%clk 0:04:12]} 15...
Rac8 {[%clk 0:03:59.1]} 16. c4 {[%clk 0:04:00.5]} 16... dxc4 {[%clk 0:03:41.1]}
17. Qxc4 {[%clk 0:03:57.6]} 17... Rf8 {[%clk 0:02:25.9]} 18. Ne5 {[%clk
0:03:48]} 18... a6 {[%clk 0:02:20.1]} 19. Rd2 {[%clk 0:03:15.7]} 19... b5 {[%clk
0:02:18.5]} 20. Qe2 {[%clk 0:02:57.5]} 20... Bd6 {[%clk 0:02:14]} 21. Nf3 {[%clk
0:02:51.6]} 21... Ng4 {[%clk 0:02:06.9]} 22. h3 {[%clk 0:02:41.9]} 22... Ne5
{[%clk 0:02:05.8]} 23. Rad1 {[%clk 0:02:32.4]} 23... Nxf3+ {[%clk 0:02:01.5]}
24. Qxf3 {[%clk 0:02:30.2]} 24... Be5 {[%clk 0:01:57.5]} 25. Rd7 {[%clk
0:02:14.2]} 25... Qb8 {[%clk 0:01:56.1]} 26. Bxe5 {[%clk 0:02:06.2]} 26... Qxe5
{[%clk 0:01:55.1]} 27. Qb7 {[%clk 0:01:50.7]} 27... Qe6 {[%clk 0:01:46.8]} 28.
R1d6 {[%clk 0:01:45.9]} 28... Qf5 {[%clk 0:01:41.7]} 29. Qxa6 {[%clk 0:01:39]}
29... c4 {[%clk 0:01:40.3]} 30. bxc4 {[%clk 0:01:28.6]} 30... bxc4 {[%clk
0:01:38.6]} 31. Qb7 {[%clk 0:01:08.9]} 31... c3 {[%clk 0:01:36.1]} 32. Rc7
{[%clk 0:01:05.6]} 32... c2 {[%clk 0:01:31.1]} 33. Rdc6 {[%clk 0:00:31.4]} 33...
Rb8 {[%clk 0:01:16.6]} 34. Qxb8 {[%clk 0:00:14.8]} 34... Rxb8 {[%clk 0:01:14.9]}
35. Rxc2 {[%clk 0:00:13.4]} 35... Rb1+ {[%clk 0:01:07.6]} 36. Kh2 {[%clk
0:00:11.5]} 36... h6 {[%clk 0:01:04.4]} 37. Rc8+ {[%clk 0:00:08.6]} 37... Kh7
{[%clk 0:01:03.2]} 38. R8c5 {[%clk 0:00:05.4]} 38... Qe6 {[%clk 0:00:56.7]} 39.
g3 {[%clk 0:00:03.6]} 39... Ra1 {[%clk 0:00:53.3]} 0-1

[Event "Live Chess"]
[Site "Chess.com"]
[Date "2024.06.02"]
[Round "-"]
[White "elis06"]
[Black "WeakOldFinished"]
[Result "1/2-1/2"]
[WhiteElo "2162"]
[BlackElo "2083"]
[TimeControl "300"]
[EndTime "2:17:23 PDT"]
[Termination "Game drawn by repetition"]

1. d4 {[%clk 0:04:58.4]} 1... e5 {[%clk 0:04:57.3]} 2. dxe5 {[%clk 0:04:56.8]}
2... Nc6 {[%clk 0:04:56.1]} 3. Nf3 {[%clk 0:04:55.8]} 3... d6 {[%clk 0:04:53.6]}
4. exd6 {[%clk 0:04:54.6]} 4... Bxd6 {[%clk 0:04:52.5]} 5. e4 {[%clk 0:04:51.3]}
5... Bg4 {[%clk 0:04:50.9]} 6. h3 {[%clk 0:04:46.8]} 6... Bxf3 {[%clk
0:04:44.7]} 7. Qxf3 {[%clk 0:04:43]} 7... Qe7 {[%clk 0:04:43.8]} 8. Bd3 {[%clk
0:04:40.1]} 8... Ne5 {[%clk 0:04:35.2]} 9. Qe2 {[%clk 0:04:38.4]} 9... Nf6
{[%clk 0:04:32.8]} 10. Nc3 {[%clk 0:04:36.3]} 10... O-O-O {[%clk 0:04:28.7]} 11.
Bd2 {[%clk 0:04:35.1]} 11... Rhe8 {[%clk 0:04:26.5]} 12. O-O-O {[%clk
0:04:32.5]} 12... Nxd3+ {[%clk 0:04:22]} 13. cxd3 {[%clk 0:04:30.9]} 13... Be5
{[%clk 0:04:20.2]} 14. f4 {[%clk 0:04:24.1]} 14... Bd4 {[%clk 0:04:18.7]} 15.
Kb1 {[%clk 0:04:21.9]} 15... Kb8 {[%clk 0:04:11.1]} 16. Rhe1 {[%clk 0:04:16.4]}
16... Qd7 {[%clk 0:04:09]} 17. e5 {[%clk 0:04:13]} 17... Bxc3 {[%clk 0:04:07.5]}
18. Bxc3 {[%clk 0:04:11.1]} 18... Nd5 {[%clk 0:04:06.3]} 19. Qd2 {[%clk
0:03:58.9]} 19... g6 {[%clk 0:04:02.3]} 20. Re4 {[%clk 0:03:55.7]} 20... Re6
{[%clk 0:04:00.4]} 21. Rd4 {[%clk 0:03:47.7]} 21... c5 {[%clk 0:03:58.1]} 22.
Re4 {[%clk 0:03:43.1]} 22... f5 {[%clk 0:03:36.9]} 23. Re2 {[%clk 0:03:36.2]}
23... c4 {[%clk 0:03:23.1]} 24. d4 {[%clk 0:03:14.8]} 24... b5 {[%clk
0:03:19.7]} 25. g4 {[%clk 0:03:05.3]} 25... Rc8 {[%clk 0:03:12.7]} 26. a3 {[%clk
0:02:54]} 26... a5 {[%clk 0:02:55.2]} 27. Bxa5 {[%clk 0:02:49.2]} 27... c3
{[%clk 0:02:54.4]} 28. Bxc3 {[%clk 0:02:39.5]} 28... Rc4 {[%clk 0:02:53.6]} 29.
Rc1 {[%clk 0:02:32.6]} 29... Rec6 {[%clk 0:02:51.4]} 30. e6 {[%clk 0:02:12.3]}
30... Rxe6 {[%clk 0:02:49.5]} 31. Rxe6 {[%clk 0:02:08.8]} 31... Qxe6 {[%clk
0:02:49.4]} 32. Re1 {[%clk 0:02:05.8]} 32... Qd7 {[%clk 0:02:44.6]} 33. Re5
{[%clk 0:01:57.9]} 33... Nf6 {[%clk 0:02:28.5]} 34. gxf5 {[%clk 0:01:47.4]}
34... gxf5 {[%clk 0:02:28.4]} 35. Qe1 {[%clk 0:01:40.5]} 35... Ne4 {[%clk
0:02:24.5]} 36. Bb4 {[%clk 0:01:21.2]} 36... Rxd4 {[%clk 0:02:18.7]} 37. Qe2
{[%clk 0:01:11.7]} 37... Rc4 {[%clk 0:02:10.7]} 38. Re7 {[%clk 0:01:04.5]} 38...
Qd4 {[%clk 0:02:02.5]} 39. Re8+ {[%clk 0:01:00.4]} 39... Kb7 {[%clk 0:02:00.6]}
40. Re7+ {[%clk 0:00:59.1]} 40... Kc6 {[%clk 0:01:55.3]} 41. Re6+ {[%clk
0:00:57.2]} 41... Kd7 {[%clk 0:01:47.3]} 42. Re7+ {[%clk 0:00:55.3]} 42... Kc6
{[%clk 0:01:40.4]} 43. Re6+ {[%clk 0:00:53.9]} 43... Kd7 {[%clk 0:01:31.2]} 44.
Re7+ {[%clk 0:00:53.1]} 44... Kc6 {[%clk 0:01:29.6]} 1/2-1/2

[Event "Live Chess"]
[Site "Chess.com"]
[Date "2024.06.02"]
[Round "-"]
[White "Duke_of_Bebington"]
[Black "seasidecastle27"]
[Result "0-1"]
[WhiteElo "1639"]
[BlackElo "1920"]
[TimeControl "300"]
[EndTime "2:17:37 PDT"]
[Termination "seasidecastle27 won by resignation"]

1. e4 {[%clk 0:04:58.2]} 1... e6 {[%clk 0:04:59.2]} 2. d4 {[%clk 0:04:55.8]}
2... d5 {[%clk 0:04:58.4]} 3. Nd2 {[%clk 0:04:54.6]} 3... dxe4 {[%clk
0:04:57.2]} 4. Nxe4 {[%clk 0:04:53.1]} 4... Be7 {[%clk 0:04:56.5]} 5. Nf3 {[%clk
0:04:50.5]} 5... Nf6 {[%clk 0:04:55.8]} 6. Bd3 {[%clk 0:04:49.2]} 6... Bd7
{[%clk 0:04:55]} 7. O-O {[%clk 0:04:47.8]} 7... Bc6 {[%clk 0:04:53.4]} 8. Re1
{[%clk 0:04:37]} 8... Nbd7 {[%clk 0:04:52.2]} 9. c3 {[%clk 0:04:30.5]} 9... O-O
{[%clk 0:04:50.7]} 10. Qc2 {[%clk 0:04:29.1]} 10... g6 {[%clk 0:04:48.8]} 11.
Nxf6+ {[%clk 0:04:17.9]} 11... Bxf6 {[%clk 0:04:46.4]} 12. Ne5 {[%clk
0:04:13.4]} 12... Nxe5 {[%clk 0:04:20]} 13. dxe5 {[%clk 0:04:07.6]} 13... Bg7
{[%clk 0:04:14.2]} 14. Bf4 {[%clk 0:03:57.8]} 14... Qe7 {[%clk 0:03:55.1]} 15.
Bf1 {[%clk 0:03:53.9]} 15... Rad8 {[%clk 0:03:53.3]} 16. Rad1 {[%clk 0:03:53.3]}
16... Rxd1 {[%clk 0:03:50.7]} 17. Rxd1 {[%clk 0:03:53.2]} 17... Rd8 {[%clk
0:03:49.6]} 18. Rxd8+ {[%clk 0:03:47.1]} 18... Qxd8 {[%clk 0:03:48.3]} 19. Bg3
{[%clk 0:03:44.1]} 19... Qd5 {[%clk 0:03:41.6]} 20. b3 {[%clk 0:03:40.8]} 20...
Bxe5 {[%clk 0:03:36.4]} 21. c4 {[%clk 0:03:37]} 21... Qd6 {[%clk 0:03:29.2]} 22.
Bxe5 {[%clk 0:03:33.5]} 22... Qxe5 {[%clk 0:03:27.7]} 23. Qd2 {[%clk 0:03:31.1]}
23... Qd6 {[%clk 0:03:24]} 24. Qxd6 {[%clk 0:03:28.8]} 24... cxd6 {[%clk
0:03:22.9]} 25. f3 {[%clk 0:03:20.4]} 25... f5 {[%clk 0:03:18]} 26. Kf2 {[%clk
0:03:19.5]} 26... e5 {[%clk 0:03:17]} 27. Ke3 {[%clk 0:03:18.5]} 27... Kf7
{[%clk 0:03:16]} 28. Bd3 {[%clk 0:03:14.4]} 28... Ke6 {[%clk 0:03:15]} 29. a3
{[%clk 0:03:11.4]} 29... a5 {[%clk 0:03:13.3]} 30. b4 {[%clk 0:03:10.3]} 30...
axb4 {[%clk 0:03:11.7]} 31. axb4 {[%clk 0:03:10.2]} 31... d5 {[%clk 0:03:09.9]}
32. b5 {[%clk 0:03:02.7]} 32... Bd7 {[%clk 0:03:04.8]} 33. c5 {[%clk 0:03:01.6]}
33... d4+ {[%clk 0:02:59.9]} 34. Ke2 {[%clk 0:02:58.3]} 34... Kd5 {[%clk
0:02:58.7]} 35. c6 {[%clk 0:02:51.4]} 35... bxc6 {[%clk 0:02:57.5]} 36. b6
{[%clk 0:02:50.7]} 36... Bc8 {[%clk 0:02:54.8]} 0-1

[Event "Live Chess"]
[Site "Chess.com"]
[Date "2024.06.02"]
[Round "-"]
[White "JanMur7"]
[Black "Queensandpawns"]
[Result "1-0"]
[WhiteElo "2277"]
[BlackElo "2275"]
[TimeControl "300"]
[EndTime "2:17:40 PDT"]
[Termination "JanMur7 won by checkmate"]

1. c4 {[%clk 0:04:58.9]} 1... d5 {[%clk 0:04:38.4]} 2. cxd5 {[%clk 0:04:57.4]}
2... c6 {[%clk 0:04:38.3]} 3. dxc6 {[%clk 0:04:55.2]} 3... Nxc6 {[%clk
0:04:38.2]} 4. Nf3 {[%clk 0:04:53.9]} 4... e5 {[%clk 0:04:37.6]} 5. Nc3 {[%clk
0:04:52.1]} 5... Nf6 {[%clk 0:04:36.6]} 6. d3 {[%clk 0:04:50.9]} 6... Bc5 {[%clk
0:04:35.7]} 7. g3 {[%clk 0:04:40.9]} 7... Ng4 {[%clk 0:04:29.4]} 8. Ne4 {[%clk
0:04:39.6]} 8... Qb6 {[%clk 0:04:26]} 9. Nxc5 {[%clk 0:04:34.7]} 9... Qxc5
{[%clk 0:04:24.9]} 10. e3 {[%clk 0:04:29.2]} 10... Be6 {[%clk 0:04:23.4]} 11.
Bg2 {[%clk 0:04:25.4]} 11... Rd8 {[%clk 0:04:22.6]} 12. Qe2 {[%clk 0:04:10]}
12... Nb4 {[%clk 0:04:11.4]} 13. O-O {[%clk 0:03:56.8]} 13... Nxd3 {[%clk
0:04:08.5]} 14. Ng5 {[%clk 0:03:47.1]} 14... Bf5 {[%clk 0:03:48.1]} 15. e4
{[%clk 0:03:30.7]} 15... Bc8 {[%clk 0:03:44.9]} 16. h3 {[%clk 0:03:26.1]} 16...
Ngxf2 {[%clk 0:03:19.5]} 17. Rxf2 {[%clk 0:03:14.8]} 17... Nxf2 {[%clk
0:03:19.4]} 18. Be3 {[%clk 0:03:01.9]} 18... Nxh3+ {[%clk 0:03:02.2]} 19. Bxh3
{[%clk 0:02:58]} 19... Qe7 {[%clk 0:03:00]} 20. Qb5+ {[%clk 0:02:46.7]} 20...
Bd7 {[%clk 0:02:54.4]} 21. Bxd7+ {[%clk 0:02:45.2]} 21... Qxd7 {[%clk
0:02:54.3]} 22. Qxe5+ {[%clk 0:02:43.5]} 22... Qe7 {[%clk 0:02:48.7]} 23. Qxg7
{[%clk 0:02:30.3]} 23... Kd7 {[%clk 0:02:35.2]} 24. Rd1+ {[%clk 0:02:24.1]}
24... Kc8 {[%clk 0:02:33.3]} 25. Rxd8+ {[%clk 0:02:05.6]} 25... Rxd8 {[%clk
0:02:23.6]} 26. Qxf7 {[%clk 0:01:58.7]} 26... Rd1+ {[%clk 0:01:52.3]} 27. Kg2
{[%clk 0:01:54.1]} 27... Qxf7 {[%clk 0:01:43.9]} 28. Nxf7 {[%clk 0:01:54]} 28...
Kd7 {[%clk 0:01:39.7]} 29. Ng5 {[%clk 0:01:46.5]} 29... h6 {[%clk 0:01:31.9]}
30. Nf3 {[%clk 0:01:34.3]} 30... Rb1 {[%clk 0:01:30.1]} 31. Bd4 {[%clk 0:01:32]}
31... Ke6 {[%clk 0:01:28.5]} 32. Bc3 {[%clk 0:01:22.8]} 32... Rc1 {[%clk
0:01:19.5]} 33. Nd4+ {[%clk 0:01:20]} 33... Kd7 {[%clk 0:01:10.1]} 34. e5 {[%clk
0:01:14.2]} 34... a6 {[%clk 0:00:55.6]} 35. e6+ {[%clk 0:01:09.1]} 35... Ke8
{[%clk 0:00:37.1]} 36. Nf5 {[%clk 0:01:01.8]} 36... h5 {[%clk 0:00:28.8]} 37.
Bf6 {[%clk 0:00:49.8]} 37... Rc2+ {[%clk 0:00:16.7]} 38. Kh3 {[%clk 0:00:47]}
38... Re2 {[%clk 0:00:13.6]} 39. Nd6+ {[%clk 0:00:43.8]} 39... Kf8 {[%clk
0:00:11.3]} 40. e7+ {[%clk 0:00:43.4]} 40... Rxe7 {[%clk 0:00:09]} 41. Bxe7+
{[%clk 0:00:43.3]} 41... Kxe7 {[%clk 0:00:08.3]} 42. Nxb7 {[%clk 0:00:43.2]}
42... Kd7 {[%clk 0:00:07.9]} 43. Nc5+ {[%clk 0:00:42.3]} 43... Kc6 {[%clk
0:00:07.8]} 44. Nxa6 {[%clk 0:00:42.2]} 44... Kb5 {[%clk 0:00:07.4]} 45. Kh4
{[%clk 0:00:40.5]} 45... Kc4 {[%clk 0:00:07.3]} 46. Kxh5 {[%clk 0:00:39.7]}
46... Kd3 {[%clk 0:00:07.2]} 47. g4 {[%clk 0:00:39.1]} 47... Kc2 {[%clk
0:00:07.1]} 48. g5 {[%clk 0:00:38.9]} 48... Kb1 {[%clk 0:00:07]} 49. g6 {[%clk
0:00:38.8]} 49... Ka1 {[%clk 0:00:06.9]} 50. g7 {[%clk 0:00:38.5]} 50... Kb1
{[%clk 0:00:06.8]} 51. g8=Q {[%clk 0:00:36.9]} 51... Ka1 {[%clk 0:00:06.3]} 52.
Qg1+ {[%clk 0:00:36]} 52... Kxa2 {[%clk 0:00:06.1]} 53. Nb4+ {[%clk 0:00:33.2]}
53... Kb3 {[%clk 0:00:06]} 54. Na2 {[%clk 0:00:32.1]} 54... Kc2 {[%clk
0:00:05.9]} 55. Qc1+ {[%clk 0:00:30.3]} 55... Kb3 {[%clk 0:00:05.8]} 56. Qc3+
{[%clk 0:00:29.5]} 56... Ka4 {[%clk 0:00:05.7]} 57. Qb4# {[%clk 0:00:28.5]} 1-0

[Event "Live Chess"]
[Site "Chess.com"]
[Date "2024.06.02"]
[Round "-"]
[White "MagnersCarlsberg2870"]
[Black "KeithArkell"]
[Result "0-1"]
[WhiteElo "1814"]
[BlackElo "2414"]
[TimeControl "300"]
[EndTime "2:18:19 PDT"]
[Termination "KeithArkell won by resignation"]

1. b3 {[%clk 0:04:55.2]} 1... b5 {[%clk 0:04:58.5]} 2. Bb2 {[%clk 0:04:52.7]}
2... Bb7 {[%clk 0:04:57.7]} 3. Nf3 {[%clk 0:04:50.3]} 3... Nf6 {[%clk 0:04:57]}
4. e3 {[%clk 0:04:49.1]} 4... b4 {[%clk 0:04:56.2]} 5. c4 {[%clk 0:04:46.6]}
5... bxc3 {[%clk 0:04:55]} 6. Nxc3 {[%clk 0:04:45]} 6... e6 {[%clk 0:04:54.3]}
7. d4 {[%clk 0:04:43]} 7... c5 {[%clk 0:04:53.6]} 8. Bd3 {[%clk 0:04:41.6]} 8...
cxd4 {[%clk 0:04:52.8]} 9. Nxd4 {[%clk 0:04:39.1]} 9... Nc6 {[%clk 0:04:52.1]}
10. Nxc6 {[%clk 0:04:35.3]} 10... Bxc6 {[%clk 0:04:51.4]} 11. O-O {[%clk
0:04:34.1]} 11... Be7 {[%clk 0:04:50.8]} 12. Rc1 {[%clk 0:04:27.8]} 12... O-O
{[%clk 0:04:49.4]} 13. Bb5 {[%clk 0:04:15.3]} 13... Bxb5 {[%clk 0:04:47.5]} 14.
Nxb5 {[%clk 0:04:14]} 14... a6 {[%clk 0:04:45.3]} 15. Nd6 {[%clk 0:04:01]} 15...
Qb6 {[%clk 0:04:44.3]} 16. Nc4 {[%clk 0:03:58.7]} 16... Qb5 {[%clk 0:04:26.8]}
17. f4 {[%clk 0:03:24.6]} 17... d5 {[%clk 0:04:25.8]} 18. Ne5 {[%clk 0:03:22.8]}
18... Rfc8 {[%clk 0:04:24.2]} 19. Rf3 {[%clk 0:03:19.3]} 19... g6 {[%clk
0:04:22.7]} 20. Rxc8+ {[%clk 0:03:07.2]} 20... Rxc8 {[%clk 0:04:20.9]} 21. Qd4
{[%clk 0:02:52.6]} 21... Qe2 {[%clk 0:04:13.5]} 22. Ng4 {[%clk 0:02:41]} 22...
Rc2 {[%clk 0:04:10.3]} 23. Rf2 {[%clk 0:02:03.2]} 23... Qe1+ {[%clk 0:04:04.9]}
24. Rf1 {[%clk 0:02:01.2]} 24... Qe2 {[%clk 0:03:54.9]} 25. Rf2 {[%clk
0:01:58.5]} 25... Qe1+ {[%clk 0:03:10.9]} 26. Rf1 {[%clk 0:01:33.7]} 26... e5
{[%clk 0:03:08.3]} 27. Rxe1 {[%clk 0:01:28.2]} 27... exd4 {[%clk 0:03:06.9]} 28.
exd4 {[%clk 0:01:27.2]} 28... Nxg4 {[%clk 0:03:03.5]} 29. Rxe7 {[%clk
0:01:24.7]} 29... Rxb2 {[%clk 0:03:02.3]} 30. Re8+ {[%clk 0:01:22.3]} 30... Kg7
{[%clk 0:03:01.3]} 0-1

[Event "Live Chess"]
[Site "Chess.com"]
[Date "2024.06.02"]
[Round "-"]
[White "Tushinskiy"]
[Black "GoldsmanB"]
[Result "1-0"]
[WhiteElo "2281"]
[BlackElo "1102"]
[TimeControl "300"]
[EndTime "2:18:32 PDT"]
[Termination "Tushinskiy won by resignation"]

1. d4 {[%clk 0:04:55.8]} 1... Nf6 {[%clk 0:04:58.1]} 2. c3 {[%clk 0:04:55.7]}
2... e6 {[%clk 0:04:54.8]} 3. Nf3 {[%clk 0:04:55.1]} 3... d5 {[%clk 0:04:52.9]}
4. Bf4 {[%clk 0:04:52.9]} 4... c5 {[%clk 0:04:51.9]} 5. Bg3 {[%clk 0:04:52.8]}
5... Nc6 {[%clk 0:04:50.3]} 6. e3 {[%clk 0:04:51.7]} 6... Bd6 {[%clk 0:04:49.1]}
7. Bd3 {[%clk 0:04:46.8]} 7... Bd7 {[%clk 0:04:46.4]} 8. Bxd6 {[%clk 0:04:37.5]}
8... cxd4 {[%clk 0:04:36.3]} 9. exd4 {[%clk 0:04:35.6]} 9... Ng4 {[%clk
0:04:27.2]} 10. Qe2 {[%clk 0:04:31.7]} 10... Qf6 {[%clk 0:04:22.7]} 11. Nbd2
{[%clk 0:04:28.9]} 1-0

[Event "Live Chess"]
[Site "Chess.com"]
[Date "2024.06.02"]
[Round "-"]
[White "vincents82"]
[Black "dmitro74"]
[Result "1/2-1/2"]
[WhiteElo "1997"]
[BlackElo "1733"]
[TimeControl "300"]
[EndTime "2:19:07 PDT"]
[Termination "Game drawn - insufficient material"]

1. e4 {[%clk 0:04:57.7]} 1... e6 {[%clk 0:04:58.9]} 2. d4 {[%clk 0:04:56.6]}
2... d5 {[%clk 0:04:58.3]} 3. Nd2 {[%clk 0:04:55.3]} 3... dxe4 {[%clk
0:04:56.8]} 4. Nxe4 {[%clk 0:04:54.3]} 4... Nd7 {[%clk 0:04:56.4]} 5. Nf3 {[%clk
0:04:53.3]} 5... Ngf6 {[%clk 0:04:55.7]} 6. Nxf6+ {[%clk 0:04:52.3]} 6... Nxf6
{[%clk 0:04:54.3]} 7. Bd3 {[%clk 0:04:49]} 7... c5 {[%clk 0:04:52.4]} 8. dxc5
{[%clk 0:04:46.4]} 8... Bxc5 {[%clk 0:04:50.5]} 9. Bg5 {[%clk 0:04:45.6]} 9...
Be7 {[%clk 0:04:43]} 10. Qe2 {[%clk 0:04:44.1]} 10... O-O {[%clk 0:04:27.6]} 11.
O-O-O {[%clk 0:04:42.9]} 11... Nd5 {[%clk 0:04:20.6]} 12. Bxe7 {[%clk
0:04:32.9]} 12... Qxe7 {[%clk 0:04:19.3]} 13. Be4 {[%clk 0:04:28.5]} 13... Nf6
{[%clk 0:04:09.3]} 14. Ne5 {[%clk 0:04:24.7]} 14... Nxe4 {[%clk 0:04:00.8]} 15.
Qxe4 {[%clk 0:04:23.7]} 15... f6 {[%clk 0:03:59.5]} 16. Nf3 {[%clk 0:04:17.6]}
16... Bd7 {[%clk 0:03:46.9]} 17. Nd4 {[%clk 0:04:16.5]} 17... e5 {[%clk
0:03:28.6]} 18. Nb3 {[%clk 0:03:41.4]} 18... Bc6 {[%clk 0:03:22.2]} 19. Qc4+
{[%clk 0:03:39]} 19... Qf7 {[%clk 0:03:16.9]} 20. Qxf7+ {[%clk 0:03:34.9]} 20...
Kxf7 {[%clk 0:03:12.5]} 21. f3 {[%clk 0:03:33.2]} 21... Rfd8 {[%clk 0:03:07.7]}
22. Nc5 {[%clk 0:03:26.2]} 22... Ke7 {[%clk 0:03:03.4]} 23. Rxd8 {[%clk
0:03:23.3]} 23... Rxd8 {[%clk 0:03:01.5]} 24. Rd1 {[%clk 0:03:21.4]} 24... Rxd1+
{[%clk 0:02:56.8]} 25. Kxd1 {[%clk 0:03:20.4]} 25... b6 {[%clk 0:02:55.2]} 26.
Ne4 {[%clk 0:03:17.5]} 26... Bxe4 {[%clk 0:02:48.1]} 27. fxe4 {[%clk 0:03:16.6]}
27... g6 {[%clk 0:02:47.4]} 28. g4 {[%clk 0:03:15.7]} 28... h5 {[%clk
0:02:45.5]} 29. h3 {[%clk 0:03:14.8]} 29... hxg4 {[%clk 0:02:44.2]} 30. hxg4
{[%clk 0:03:14]} 30... Ke6 {[%clk 0:02:43.6]} 31. Kd2 {[%clk 0:03:12.2]} 31...
f5 {[%clk 0:02:42.6]} 32. exf5+ {[%clk 0:03:09.4]} 32... gxf5 {[%clk 0:02:41.1]}
33. gxf5+ {[%clk 0:03:08.7]} 33... Kxf5 {[%clk 0:02:40.2]} 34. Ke3 {[%clk
0:03:08.1]} 34... e4 {[%clk 0:02:27.9]} 35. c4 {[%clk 0:03:06]} 35... Ke5 {[%clk
0:02:24.5]} 36. b4 {[%clk 0:03:04.9]} 36... a6 {[%clk 0:02:19.5]} 37. a4 {[%clk
0:02:57.1]} 37... Kf5 {[%clk 0:02:17.6]} 38. b5 {[%clk 0:02:30.5]} 38... axb5
{[%clk 0:02:13.7]} 39. cxb5 {[%clk 0:02:29.4]} 39... Ke5 {[%clk 0:02:12.3]} 40.
a5 {[%clk 0:02:27]} 40... bxa5 {[%clk 0:02:10.7]} 41. b6 {[%clk 0:02:26]} 41...
Kd6 {[%clk 0:02:09.6]} 42. Kxe4 {[%clk 0:02:24.5]} 42... Kc6 {[%clk 0:02:08.8]}
43. Kd4 {[%clk 0:02:24]} 43... Kxb6 {[%clk 0:02:07.8]} 44. Kc4 {[%clk
0:02:23.5]} 44... a4 {[%clk 0:02:06.8]} 45. Kb4 {[%clk 0:02:22.1]} 45... a3
{[%clk 0:02:05.9]} 46. Kxa3 {[%clk 0:02:21.5]} 1/2-1/2